fUST/lending_fUST_20250502
["ID","MTS","AMOUNT","RATE_DAILY","PERIOD"]
[359622510,1746189044762,-500.0,0.00019473,2]
[359622512,1746189044772,-500.0,0.00019473,2]
[359622514,1746189044782,-500.0,0.00019473,2]
[359622516,1746189044793,-500.0,0.00019473,2]
[359622518,1746189044803,-500.0,0.00019473,2]
[359622520,1746189044813,-503.0692065,0.00019473,2]
[359622522,1746189044823,-500.0,0.00019473,2]
[359622524,1746189044835,-500.0,0.00019473,2]
[359622526,1746189044845,-501.50146304,0.00019473,2]
[359622528,1746189044855,-462.22228197,0.00019473,2]
[359622531,1746189044865,-436.72994081,0.00019473,2]
[359622533,1746189044875,-500.0,0.00019473,2]
[359622535,1746189044885,-500.0,0.00019473,2]
[359622537,1746189044895,-500.0,0.00019473,2]
[359622539,1746189044905,-500.0,0.00019473,2]
[359622540,1746189044914,-501.46932406,0.00019473,2]
[359622541,1746189044925,-500.0,0.00019473,2]
[359622542,1746189044936,-500.0,0.00019473,2]
[359622543,1746189044946,-501.66452694,0.00019473,2]
[359622544,1746189044956,-500.0,0.00019473,2]
[359622545,1746189044966,-300.0,0.00019473,2]
[359622546,1746189044976,-232.43668415,0.00019641,2]
[359622547,1746189044985,-400.0,0.00019726,2]
[359622548,1746189044997,-400.0,0.00019726,2]
[359622549,1746189045008,-400.0,0.00019726,2]
[359622550,1746189045018,-400.0,0.00019726,2]
[359622551,1746189045029,-442.87887117,0.00019726,2]
[359622552,1746189045038,-400.0,0.00019726,2]
[359622553,1746189045048,-746.44,0.00019726,2]
[359622554,1746189045058,-400.0,0.00019726,2]
[359622555,1746189045068,-443.76,0.00019726,2]
[359622556,1746189045078,-400.0,0.00019726,2]
[359622557,1746189045089,-400.0,0.00019726,2]
[359622558,1746189045099,-400.0,0.00019726,2]
[359622559,1746189045109,-400.0,0.00019726,2]
[359622560,1746189045119,-400.0,0.00019726,2]
[359622561,1746189045130,-296.05462729,0.00019726,2]
[359622562,1746189045140,-400.0,0.00019726,2]
[359622563,1746189045150,-400.0,0.00019726,2]
[359622564,1746189045161,-573.77,0.00019726,2]
[359622565,1746189045171,-400.0,0.00019726,2]
[359622566,1746189045181,-400.0,0.00019726,2]
[359622567,1746189045191,-400.0,0.00019726,2]
[359622568,1746189045200,-400.0,0.00019726,2]
[359622569,1746189045210,-400.0,0.00019726,2]
[359622570,1746189045220,-400.0,0.00019726,2]
[359622571,1746189045230,-400.0,0.00019726,2]
[359622572,1746189045240,-195.06,0.00019726,2]
[359622573,1746189045252,-428.89,0.00019726,2]
[359622574,1746189045263,-400.0,0.00019726,2]
[359622575,1746189045275,-400.0,0.00019726,2]
[359622576,1746189045285,-456.79,0.00019726,2]
[359622577,1746189045296,-400.0,0.00019726,2]
[359622578,1746189045307,-400.0,0.00019726,2]
[359622579,1746189045318,-859.25,0.00019726,2]
[359622580,1746189045328,-400.0,0.00019726,2]
[359622581,1746189045338,-400.0,0.00019726,2]
[359622582,1746189045348,-495.89,0.00019726,2]
[359622583,1746189045358,-473.32,0.00019726,2]
[359622584,1746189045368,-1052.95,0.00019726,2]
[359622585,1746189045378,-816.47,0.00019726,2]
[359622586,1746189045389,-400.0,0.00019726,2]
[359622587,1746189045399,-400.0,0.00019726,2]
[359622588,1746189045409,-400.0,0.00019726,2]
[359622589,1746189045419,-505.6861135,0.00019726,2]
[359622590,1746189045430,-400.0,0.00019726,2]
[359622591,1746189045440,-563.77,0.00019726,2]
[359622592,1746189045450,-1229.63,0.00019726,2]
[359622593,1746189045460,-546.06,0.00019726,2]
[359622594,1746189045470,-766.24,0.00019726,2]
[359622595,1746189045480,-538.98,0.00019726,2]
[359622596,1746189045490,-572.54,0.00019726,2]
[359622597,1746189045502,-630.71,0.00019726,2]
[359622598,1746189045512,-892.94,0.00019726,2]
[359622599,1746189045521,-291.95704008,0.00019726,2]
[359622600,1746189045531,-400.0,0.00019726,2]
[359622601,1746189045541,-599.88,0.00019726,2]
[359622602,1746189045551,-400.0,0.00019726,2]
[359622603,1746189045561,-400.0,0.00019726,2]
[359622604,1746189045571,-400.0,0.00019726,2]
[359622605,1746189045581,-400.0,0.00019726,2]
[359622606,1746189045590,-641.22,0.00019726,2]
[359622607,1746189045600,-400.0,0.00019726,2]
[359622608,1746189045610,-400.0,0.00019726,2]
[359622609,1746189045620,-400.0,0.00019726,2]
[359622610,1746189045629,-400.0,0.00019726,2]
[359622611,1746189045639,-488.05,0.00019726,2]
[359622612,1746189045649,-400.0,0.00019726,2]
[359622613,1746189045658,-400.0,0.00019726,2]
[359622614,1746189045668,-400.0,0.00019726,2]
[359622615,1746189045678,-400.0,0.00019726,2]
[359622616,1746189045688,-400.0,0.00019726,2]
[359622617,1746189045697,-793.84,0.00019726,2]
[359622618,1746189045707,-646.88,0.00019726,2]
[359622619,1746189045716,-416.49,0.00019726,2]
[359622620,1746189045725,-437.02,0.00019726,2]
[359622621,1746189045735,-1040.56,0.00019726,2]
[359622622,1746189045744,-400.0,0.00019726,2]
[359622623,1746189045756,-400.0,0.00019726,2]
[359622624,1746189045765,-444.8,0.00019726,2]
[359622625,1746189045775,-151.0,0.00019726,2]
[359622626,1746189045785,-400.0,0.00019726,2]
[359622627,1746189045796,-400.0,0.00019726,2]
[359622628,1746189045805,-400.0,0.00019726,2]
[359622629,1746189045815,-400.0,0.00019726,2]
[359622630,1746189045825,-400.0,0.00019726,2]
[359622631,1746189045835,-400.0,0.00019726,2]
[359622632,1746189045844,-348.20498775,0.00019726,2]
[359622633,1746189045854,-400.0,0.00019726,2]
[359622634,1746189045864,-400.0,0.00019726,2]
[359622635,1746189045874,-574.89,0.00019726,2]
[359622636,1746189045884,-400.0,0.00019726,2]
[359622637,1746189045893,-400.0,0.00019726,2]
[359622638,1746189045903,-400.0,0.00019726,2]
[359622639,1746189045913,-444.82,0.00019726,2]
[359622640,1746189045923,-368.6458967,0.00019726,2]
[359622641,1746189045934,-500.64,0.00019726,2]
[359622642,1746189045944,-992.69,0.00019726,2]
[359622643,1746189045953,-432.33,0.00019726,2]
[359622644,1746189045963,-400.0,0.00019726,2]
[359622645,1746189045973,-400.0,0.00019726,2]
[359622646,1746189045983,-504.67,0.00019726,2]
[359622647,1746189045993,-543.38,0.00019726,2]
[359622648,1746189046004,-988.74,0.00019726,2]
[359622649,1746189046014,-400.0,0.00019726,2]
[359622650,1746189046024,-400.0,0.00019726,2]
[359622651,1746189046033,-400.0,0.00019726,2]
[359622652,1746189046043,-400.0,0.00019726,2]
[359622653,1746189046053,-400.0,0.00019726,2]
[359622654,1746189046062,-1274.19,0.00019726,2]
[359622655,1746189046072,-400.0,0.00019726,2]
[359622656,1746189046082,-400.0,0.00019726,2]
[359622657,1746189046091,-400.0,0.00019726,2]
[359622658,1746189046101,-400.0,0.00019726,2]
[359622659,1746189046111,-400.0,0.00019726,2]
[359622660,1746189046121,-487.92,0.00019726,2]
[359622661,1746189046131,-2181.89,0.00019726,2]
[359622662,1746189046142,-550.75,0.00019726,2]
[359622663,1746189046151,-562.4,0.00019726,2]
[359622664,1746189046161,-400.0,0.00019726,2]
[359622665,1746189046171,-400.0,0.00019726,2]
[359622666,1746189046181,-1361.75,0.00019726,2]
[359622667,1746189046191,-513.88,0.00019726,2]
[359622668,1746189046200,-861.56,0.00019726,2]
[359622669,1746189046210,-400.0,0.00019726,2]
[359622670,1746189046219,-930.48,0.00019726,2]
[359622671,1746189046229,-615.87,0.00019726,2]
[359622672,1746189046240,-474.68,0.00019726,2]
[359622674,1746189046251,-448.08,0.00019726,2]
[359622675,1746189046262,-400.0,0.00019726,2]
[359622676,1746189046274,-400.0,0.00019726,2]
[359622677,1746189046283,-526.71,0.00019726,2]
[359622678,1746189046294,-400.0,0.00019726,2]
[359622679,1746189046304,-2045.49,0.00019726,2]
[359622680,1746189046314,-1342.95,0.00019726,2]
[359622681,1746189046324,-1038.22,0.00019726,2]
[359622682,1746189046334,-894.3,0.00019726,2]
[359622683,1746189046344,-400.0,0.00019726,2]
[359622689,1746189046399,-400.0,0.00019726,2]
[359622691,1746189046409,-759.21,0.00019726,2]
[359622693,1746189046418,-527.97,0.00019726,2]
[359622695,1746189046428,-708.46,0.00019726,2]
[359622697,1746189046438,-400.0,0.00019726,2]
[359622699,1746189046447,-2269.91,0.00019726,2]
[359622701,1746189046457,-2021.3,0.00019726,2]
[359622703,1746189046467,-1297.34,0.00019726,2]
[359622705,1746189046476,-400.0,0.00019726,2]
[359622707,1746189046486,-400.0,0.00019726,2]
[359622709,1746189046496,-1836.15,0.00019726,2]
[359622711,1746189046507,-400.0,0.00019726,2]
[359622713,1746189046516,-400.0,0.00019726,2]
[359622715,1746189046526,-187.20375351,0.00019726,2]
[359622717,1746189046536,-1037.51,0.00019726,2]
[359622719,1746189046545,-458.13,0.00019726,2]
[359622721,1746189046555,-552.0,0.00019726,2]
[359622723,1746189046564,-4838.31,0.00019726,2]
[359622725,1746189046574,-400.0,0.00019726,2]
[359622727,1746189046583,-883.25,0.00019726,2]
[359622729,1746189046593,-4238.87,0.00019726,2]
[359622731,1746189046602,-400.0,0.00019726,2]
[359622733,1746189046612,-538.69,0.00019726,2]
[359622735,1746189046621,-400.0,0.00019726,2]
[359622737,1746189046631,-401.53,0.00019726,2]
[359622739,1746189046640,-781.45,0.00019726,2]
[359622741,1746189046650,-400.0,0.00019726,2]
[359622743,1746189046659,-1785.89,0.00019726,2]
[359622745,1746189046668,-589.69,0.00019726,2]
[359622747,1746189046678,-1116.06,0.00019726,2]
[359622749,1746189046687,-486.3,0.00019726,2]
[359622750,1746189046697,-1595.27454476,0.00019726,2]
[359622752,1746189046713,-466.56549549,0.00019726,2]
[359622754,1746189046724,-180.37995975,0.00019726,2]
[359622756,1746189046734,-400.0,0.00019726,2]
[359622758,1746189046743,-200.0,0.00019726,2]
[359622760,1746189046753,-400.0,0.00019726,2]
[359622762,1746189046763,-400.0,0.00019726,2]
[359622763,1746189046773,-400.0,0.00019726,2]
[359622764,1746189046783,-2337.65,0.00019726,2]
[359622766,1746189046793,-400.0,0.00019726,2]
[359622768,1746189046803,-2016.62,0.00019726,2]
[359622770,1746189046812,-400.0,0.00019726,2]
[359622772,1746189046822,-667.02,0.00019726,2]
[359622773,1746189046831,-475.96,0.00019726,2]
[359622775,1746189046841,-906.33,0.00019726,2]
[359622777,1746189046851,-581.79,0.00019726,2]
[359622779,1746189046861,-411.78,0.00019726,2]
[359622781,1746189046870,-400.0,0.00019726,2]
[359622782,1746189046880,-400.0,0.00019726,2]
[359622785,1746189046890,-400.0,0.00019726,2]
[359622786,1746189046901,-1222.5,0.00019726,2]
[359622788,1746189046910,-400.0,0.00019726,2]
[359622790,1746189046923,-400.0,0.00019726,2]
[359622791,1746189046933,-400.0,0.00019726,2]
[359622793,1746189046943,-500.0,0.00019726,2]
[359622795,1746189046953,-400.0,0.00019726,2]
[359622797,1746189046962,-745.75,0.00019726,2]
[359622799,1746189046971,-1788.85,0.00019726,2]
[359622801,1746189046980,-472.15,0.00019726,2]
[359622802,1746189046990,-1322.26,0.00019726,2]
[359622803,1746189047000,-400.0,0.00019726,2]
[359622804,1746189047010,-400.0,0.00019726,2]
[359622805,1746189047019,-1985.53,0.00019726,2]
[359622806,1746189047028,-2250.14,0.00019726,2]
[359622807,1746189047038,-400.0,0.00019726,2]
[359622808,1746189047047,-1328.58,0.00019726,2]
[359622809,1746189047057,-921.29,0.00019726,2]
[359622810,1746189047067,-538.34,0.00019726,2]
[359622811,1746189047076,-1751.16,0.00019726,2]
[359622812,1746189047085,-502.26,0.00019726,2]
[359622813,1746189047094,-2271.98,0.00019726,2]
[359622814,1746189047103,-400.0,0.00019726,2]
[359622815,1746189047113,-5937.16,0.00019726,2]
[359622816,1746189047122,-2482.0,0.00019726,2]
[359622817,1746189047132,-2424.16,0.00019726,2]
[359622818,1746189047142,-400.0,0.00019726,2]
[359622819,1746189047151,-684.99,0.00019726,2]
[359622820,1746189047160,-501.1,0.00019726,2]
[359622821,1746189047170,-400.0,0.00019726,2]
[359622822,1746189047179,-488.92150454,0.00019726,2]
[359622823,1746189047189,-1227.55,0.00019726,2]
[359622824,1746189047199,-898.47,0.00019726,2]
[359622825,1746189047209,-4308.81,0.00019726,2]
[359622826,1746189047219,-589.99,0.00019726,2]
[359622827,1746189047229,-649.78,0.00019726,2]
[359622828,1746189047238,-621.88,0.00019726,2]
[359622829,1746189047250,-948.85079651,0.00019726,2]
[359622830,1746189047289,-1152.7899095,0.00018478,2]
[359622831,1746189047302,-349.91494582,0.00019178,2]
[359622832,1746189047332,-101.49502404,0.00019178,2]
[359622833,1746189047342,-512.17844498,0.00019726,2]
[359622834,1746189047354,-93.60075851,0.00019726,2]
[359622835,1746189047364,-549.99,0.00019726,2]
[359622836,1746189047373,-2022.45,0.00019726,2]
[359622837,1746189047383,-134.05796956,0.00019726,2]
[359622838,1746189047394,-1520.76203044,0.00019726,2]
[359622839,1746189047403,-887.45,0.00019726,2]
[359622840,1746189047413,-1613.86,0.00019726,2]
[359622841,1746189047422,-509.44,0.00019726,2]
[359622842,1746189047432,-1452.32,0.00019726,2]
[359622843,1746189047443,-724.19,0.00019726,2]
[359622844,1746189047453,-558.02,0.00019726,2]
[359622845,1746189047463,-400.0,0.00019726,2]
[359622846,1746189047473,-400.0,0.00019726,2]
[359622847,1746189047482,-400.0,0.00019726,2]
[359622848,1746189047492,-501.51,0.00019726,2]
[359622849,1746189047504,-177.65253301,0.00019726,2]
[359622850,1746189047520,-222.34746699,0.00019726,2]
[359622851,1746189047530,-400.0,0.00019726,2]
[359622852,1746189047540,-7.54015607,0.00019726,2]
[359622853,1746189047551,-714.78080813,0.00019726,2]
[359622854,1746189047819,-400.0,0.00019178,2]
[359622855,1746189047830,-193.19065218,0.00019452,2]
[359622856,1746189047841,-193.19065218,0.00019452,2]
[359622857,1746189047851,-46.2390358,0.00019726,2]
[359622858,1746189047861,-502.47,0.00019726,2]
[359622859,1746189047871,-532.04343976,0.00019726,2]
[359622860,1746189047882,-400.0,0.00019726,2]
[359622861,1746189047892,-657.22,0.00019726,2]
[359622862,1746189047902,-978.78,0.00019726,2]
[359622863,1746189047913,-400.0,0.00019726,2]
[359622864,1746189047924,-400.0,0.00019726,2]
[359622865,1746189047934,-400.0,0.00019726,2]
[359622866,1746189047944,-400.0,0.00019726,2]
[359622867,1746189047954,-12838.06,0.00019726,2]
[359622868,1746189047964,-373.350577,0.00019726,2]
[359622869,1746189047974,-315.49176358,0.00019778,2]
[359622870,1746189047984,-500.0,0.00019842,2]
[359622871,1746189047994,-151.0,0.00019904,2]
[359622872,1746189048007,-420.0,0.00019911,2]
[359622873,1746189048018,-420.0,0.00019911,2]
[359622874,1746189048029,-500.000001,0.0001998,2]
[359622875,1746189048039,-18960.17448043,0.00019999,2]
[359622876,1746189048052,-2952.02387336,0.00019999,2]
[359622877,1746189048069,-8184.97505866,0.00019999,2]
[359622878,1746189048080,-1796.99635432,0.00019999,2]
[359622879,1746189048315,-400.0,0.00019178,2]
[359622880,1746189048325,-400.0,0.00019178,2]
[359622881,1746189048336,-201.38373051,0.00019452,2]
[359622882,1746189048349,-198.61626949,0.00019452,2]
[359622883,1746189048360,-207.50107086,0.00019641,2]
[359622884,1746189048371,-215.18629571,0.00019726,2]
[359622885,1746189048381,-1615.69634892,0.00019999,2]
[359622886,1746189048393,-462.14600001,0.00019999,2]
[359622887,1746189048410,-213286.72999985,0.00019999,2]
[359622888,1746189048423,-297.0,0.00019999,2]
[359622901,1746189855241,3763.35245402,0.00018,2]
[359622907,1746189975839,378.47126472,0.00017962,2]
[359622980,1746190231987,-152.68707532,0.00018052,2]
[359622982,1746190231997,-2887.9820759,0.0001815,2]
[359622984,1746190232007,-250.0,0.00018152,2]
[359622986,1746190232016,-187.133254,0.00018335,2]
[359622988,1746190232026,-2045.28612137,0.00018814,2]
[359622990,1746190232035,-215.0738,0.00018825,2]
[359622992,1746190232047,-1200.0,0.00019077,2]
[359622994,1746190232056,-997.41183411,0.00019078,2]
[359622996,1746190232066,-277.40215515,0.00019078,2]
[359622998,1746190232075,-300.0,0.00019168,2]
[359623000,1746190232085,-13.05737195,0.00019177,2]
[359623164,1746190237849,-277.40215512,0.00019126,2]
[359623166,1746190237859,-462.65793717,0.00019168,2]
[359623168,1746190237870,-500.0,0.00019168,2]
[359623169,1746190237881,-500.0,0.00019168,2]
[359623170,1746190237891,-500.0,0.00019168,2]
[359623172,1746190237901,-500.0,0.00019168,2]
[359623173,1746190237911,-321.15990771,0.00019168,2]
[359623754,1746190245983,-178.84009229,0.00019168,2]
[359623756,1746190245993,-500.0,0.00019168,2]
[359623758,1746190246003,-500.0,0.00019168,2]
[359623760,1746190246012,-200.0,0.00019168,2]
[359623762,1746190246022,-183.61975808,0.00019168,2]
[359623764,1746190246032,-500.0,0.00019168,2]
[359623766,1746190246041,-500.0,0.00019168,2]
[359623768,1746190246050,-500.0,0.00019168,2]
[359623770,1746190246060,-500.0,0.00019168,2]
[359623772,1746190246070,-500.0,0.00019168,2]
[359623774,1746190246080,-500.0,0.00019168,2]
[359623776,1746190246090,-500.0,0.00019168,2]
[359623778,1746190246100,-500.0,0.00019168,2]
[359623780,1746190246110,-500.0,0.00019168,2]
[359623782,1746190246120,-500.0,0.00019168,2]
[359623784,1746190246129,-500.0,0.00019168,2]
[359623786,1746190246138,-500.0,0.00019168,2]
[359623788,1746190246149,-131.63395952,0.00019168,2]
[359623848,1746190246715,250.0,0.00017952,2]
[359624224,1746190273082,170.23,0.00013699,2]
[359624225,1746190273566,170.23,0.00013699,2]
[359624226,1746190274042,170.23,0.00013699,2]
[359624227,1746190275061,170.23,0.00013699,2]
[359624228,1746190275912,170.23,0.00013699,2]
[359624229,1746190276343,170.24208999,0.00013699,2]
[359624233,1746190336654,2764.69100311,0.00025,30]
[359624234,1746190393202,218.38648083,0.00025,30]
[359624237,1746190553318,5000.0,0.00017207,2]
[359624238,1746190553340,2011.608463,0.00017207,2]
[359624239,1746190588747,154.12902586,6.8e-07,2]
[359624240,1746190588865,154.12902586,6.8e-07,2]
[359624241,1746190589058,154.12902586,6.8e-07,2]
[359624242,1746190589158,154.12902586,6.8e-07,2]
[359624243,1746190589372,154.12902586,6.8e-07,2]
[359624244,1746190589539,154.12902586,6.8e-07,2]
[359624245,1746190589703,154.12902586,6.8e-07,2]
[359624246,1746190589790,154.12902586,6.8e-07,2]
[359624247,1746190590202,154.12902586,6.8e-07,2]
[359624249,1746190883158,250.0,0.00017192,2]
[359624271,1746191432034,-349.78282801,0.00018077,2]
[359624272,1746191432044,-1000.0,0.00018077,2]
[359624273,1746191432053,-385.564562,0.00018152,2]
[359624274,1746191432063,-300.0,0.00018175,2]
[359624275,1746191432073,-1200.0,0.00018175,2]
[359624276,1746191432082,-500.0,0.00018176,2]
[359624277,1746191432092,-500.0,0.00018176,2]
[359624278,1746191432101,-500.0,0.00018176,2]
[359624279,1746191432110,-500.0,0.00018176,2]
[359624281,1746191432120,-482.87791806,0.00018176,2]
[359624283,1746191432129,-500.0,0.00018176,2]
[359624284,1746191432139,-500.0,0.00018176,2]
[359624285,1746191432148,-500.0,0.00018176,2]
[359624286,1746191432158,-500.0,0.00018176,2]
[359624287,1746191432168,-500.0,0.00018176,2]
[359624288,1746191432178,-500.0,0.00018176,2]
[359624289,1746191432187,-500.0,0.00018176,2]
[359624290,1746191432196,-15699.69690338,0.00018176,2]
[359624291,1746191432206,-2048.3103102,0.00018177,2]
[359624292,1746191435895,-19977.3201477,0.00018177,2]
[359624293,1746191435905,-500.0,0.00018238,2]
[359624294,1746191435916,-352.83603389,0.00018238,2]
[359624295,1746191435925,-152.31057794,0.00018238,2]
[359624296,1746191435935,-18826.85647177,0.00018239,2]
[359624320,1746191438107,-496.01044427,0.00018239,2]
[359624321,1746191438174,-6569.06696007,0.00018239,2]
[359624379,1746191440360,-198.6202267,0.00018239,2]
[359624384,1746191440418,-731.54999959,0.00018239,2]
[359624594,1746191442988,-359.48258795,0.00018239,2]
[359624905,1746191445964,-5389.49321058,0.00018239,2]
[359624912,1746191446020,-1024.95,0.00018239,2]
[359624914,1746191446031,-4397.64904997,0.00018239,2]
[359625056,1746191609037,541.5732004,0.00017919,2]
[359625057,1746191611998,2076.58429359,0.00016,2]
[359625316,1746191676505,-192.782281,0.00018092,2]
[359625317,1746191676533,-303.49543922,0.00018238,2]
[359625318,1746191676566,-500.0,0.00018238,2]
[359625319,1746191676595,-500.0,0.00018238,2]
[359625320,1746191676625,-500.0,0.00018238,2]
[359625321,1746191676653,-500.0,0.00018238,2]
[359625322,1746191676681,-500.0,0.00018238,2]
[359625323,1746191676709,-500.0,0.00018238,2]
[359625324,1746191676736,-500.0,0.00018238,2]
[359625325,1746191676764,-515.57493768,0.00018238,2]
[359625326,1746191676788,-50085.50080556,0.00018239,2]
[359625327,1746191676811,-21846.50492185,0.00018239,2]
[359625328,1746191676835,-370000.0,0.000189,2]
[359625329,1746191676859,-166.44129308,0.00018978,2]
[359625330,1746191676883,-596.98522372,0.00018999,2]
[359625331,1746191676906,-141914.02180515,0.00019,2]
[359625334,1746191692636,-3547.25,0.0001889,3]
[359625335,1746191692662,-196452.75,0.000189,2]
[359625341,1746191882734,1017.5733806,0.00017899,2]
[359625343,1746192059913,1121.1453601,0.00019111,120]
[359625344,1746192109547,-235.38195485,0.00018019,2]
[359625345,1746192117913,-247.63678505,0.00018019,2]
[359625351,1746192214884,12974.584112,0.00025,30]
[359625543,1746192470585,8487.84284331,0.00018,2]
[359625544,1746192475027,804.04424491,0.00016,2]
[359625550,1746192500296,527.5057775,0.00017871,2]
[359625551,1746192505694,651.41433328,0.000176,2]
[359625552,1746192524800,208.27337045,0.00016,2]
[359625560,1746192593634,192.782281,0.00017793,2]
[359625568,1746192632110,-151.0,0.00018585,2]
[359625569,1746192632119,-207.4,0.00018691,2]
[359625570,1746192632129,-1002.77038438,0.00018772,2]
[359625571,1746192632138,-348.29703723,0.000188,2]
[359625572,1746192632149,-300.0,0.00018869,2]
[359625573,1746192632158,-300.0,0.00018869,2]
[359625575,1746192632168,-300.0,0.00018869,2]
[359625576,1746192632178,-1200.0,0.00018869,2]
[359625579,1746192632187,-348.29703719,0.0001887,2]
[359625580,1746192632196,-467.2185692,0.0001887,2]
[359625582,1746192632208,-12949.95946796,0.0001887,2]
[359625606,1746192638128,-2179.38833857,0.0001887,2]
[359625652,1746192640487,-233.38949079,0.0001887,2]
[359625936,1746192643107,-5073.46284437,0.0001887,2]
[359625938,1746192643124,-29096.58128911,0.0001887,2]
[359625941,1746192643137,-568.75872854,0.00018871,2]
[359625943,1746192643149,-500.0,0.00018871,2]
[359625946,1746192643162,-500.0,0.00018871,2]
[359625948,1746192643174,-500.0,0.00018871,2]
[359625950,1746192643186,-500.0,0.00018871,2]
[359625953,1746192643200,-475.4821581,0.00018871,2]
[359625955,1746192643211,-500.0,0.00018871,2]
[359625957,1746192643224,-500.0,0.00018871,2]
[359625959,1746192643235,-500.0,0.00018871,2]
[359625962,1746192643247,-500.0,0.00018871,2]
[359625964,1746192643259,-500.0,0.00018871,2]
[359625966,1746192643271,-500.0,0.00018871,2]
[359625969,1746192643282,-596.98522372,0.00018872,2]
[359625971,1746192643294,-500.0,0.00018873,2]
[359625973,1746192643305,-502.78096543,0.00018873,2]
[359625975,1746192643315,-2956.04,0.0001889,3]
[359625977,1746192643326,-1478.02,0.0001889,3]
[359625979,1746192643337,-739.01,0.0001889,3]
[359625982,1746192643349,-369.51,0.0001889,3]
[359625984,1746192643360,-184.75,0.0001889,3]
[359625986,1746192643370,-554.28,0.0001889,3]
[359625988,1746192643381,-3437.78115223,0.000189,2]
[359626250,1746192646109,-1359.65916257,0.000189,2]
[359626256,1746192646162,-275.16655845,0.000189,2]
[359626259,1746192646175,-3841.37887498,0.000189,2]
[359626265,1746192646222,-1119.3,0.000189,2]
[359626329,1746193063042,10000.0,0.00025,30]
[359626330,1746193080214,10000.0,0.00025,30]
[359626331,1746193089515,10000.0,0.00025,30]
[359626332,1746193089876,16664.7521849,0.00017847,2]
[359626341,1746193096517,10000.0,0.00025,30]
[359626342,1746193103670,10000.0,0.00025,30]
[359626343,1746193110113,10000.0,0.00025,30]
[359626344,1746193116286,10000.0,0.00025,30]
[359626345,1746193124603,10000.0,0.00025,30]
[359626348,1746193163575,949.0,0.00025,30]
[359626352,1746193353474,2233.10481317,0.00025,30]
[359626360,1746193731256,192.782282,0.00017799,2]
[359626385,1746193832144,-151.0,0.00018585,2]
[359626386,1746193832154,-207.4,0.00018691,2]
[359626388,1746193832164,-1200.0,0.00018796,2]
[359626390,1746193832175,-500.0,0.00018797,2]
[359626392,1746193832185,-208.97822233,0.00018797,2]
[359626393,1746193832195,-300.0,0.00018797,2]
[359626395,1746193832206,-300.0,0.00018797,2]
[359626396,1746193832216,-300.0,0.00018797,2]
[359626398,1746193832227,-244.0,0.00018797,2]
[359626399,1746193832237,-8863.00896837,0.00018798,2]
[359626400,1746193832271,-500.0,0.00018797,2]
[359626401,1746193832281,-13214.35584475,0.00018798,2]
[359626402,1746193832291,-417.8896566,0.00018799,2]
[359626403,1746193832301,-101150.7773731,0.000188,2]
[359626404,1746193832311,-613.80941605,0.00018897,2]
[359626405,1746193832321,-208.97822231,0.00018936,2]
[359626406,1746193832333,-362.1083304,0.00019,2]
[359626407,1746193832343,-362.1083304,0.00019,2]
[359626408,1746193832353,-362.1083304,0.00019,2]
[359626409,1746193832363,-306.749278,0.00019,2]